bitfinex/quotes_SOLUSD_20250624
["timestamp","ask_amount","ask_price","bid_price","bid_amount"]
[1750746009908,8.51528323,145.87,145.84,5.55616437]
[1750746010106,8.51528323,145.87,145.84,94.95616437]
[1750746010424,8.51528323,145.87,145.85,5.55616437]
[1750746010632,8.51528323,145.87,145.84,94.95616437]
[1750746011010,8.51528323,145.87,145.85,33.93616437]
[1750746011223,6.14,145.92,145.86,18.64964886]
[1750746011224,5.55616437,145.91,145.86,18.64964886]
[1750746011426,5.55616437,145.91,145.87,28.4]
[1750746011737,11.69616437,145.92,145.87,33.95616437]
[1750746012037,11.69616437,145.92,145.87,28.4]
[1750746012211,11.69616437,145.92,145.86,89.4]
[1750746012406,5.55616437,145.88,145.86,89.4]
[1750746012613,5.55616437,145.89,145.86,89.4]
[1750746014331,5.55616437,145.88,145.86,89.4]
[1750746014532,18.54933378,145.92,145.86,89.4]
[1750746014736,6.14,145.92,145.86,89.4]
[1750746015029,5.55616437,145.88,145.86,89.4]
[1750746016710,5.55616437,145.89,145.86,89.4]
[1750746016928,6.14,145.92,145.86,89.4]
[1750746017129,5.55616437,145.89,145.86,89.4]
[1750746018333,5.55616437,145.9,145.86,89.4]
[1750746018553,5.55616437,145.9,145.86,117.8]
[1750746019140,50.72,145.93,145.86,89.4]
[1750746019141,5.55616437,145.87,145.86,89.4]
[1750746020525,5.55616437,145.87,145.76,35.33129745]
[1750746020526,12.41167169,145.87,145.81,89.4]
[1750746020727,5.55616437,145.82,145.81,89.4]
[1750746023639,5.55616437,145.84,145.81,89.4]
[1750746024140,5.55616437,145.85,145.81,117.8]
[1750746024940,6.22,145.87,145.81,117.8]
[1750746025137,5.55616437,145.85,145.81,117.8]
[1750746025648,4.95616437,145.85,145.81,117.8]
[1750746026220,5.55616437,145.84,145.81,117.8]
[1750746026431,5.55616437,145.83,145.81,89.4]
[1750746026737,5.55616437,145.84,145.81,89.4]
[1750746028636,5.55616437,145.82,145.81,89.4]
[1750746030639,5.55616437,145.82,145.79,89.4]
[1750746030834,12.41332988,145.84,145.79,89.4]
[1750746030835,5.55616437,145.8,145.79,89.4]
[1750746031223,6.22,145.87,145.79,89.4]
[1750746031423,5.55616437,145.82,145.79,89.4]
[1750746031623,5.55616437,145.83,145.79,94.95616437]
[1750746032528,5.55616437,145.83,145.79,89.4]
[1750746035150,5.55616437,145.84,145.8,28.38]
[1750746036676,5.55616437,145.85,145.8,33.93616437]
[1750746040674,5.55616437,145.86,145.81,24.20581323]
[1750746040983,11.77616437,145.87,145.82,33.91616437]
[1750746041471,11.77616437,145.87,145.82,123.31616437]
[1750746043562,5.55616437,145.86,145.82,117.76]
[1750746044164,5.55616437,145.86,145.82,123.31616437]
[1750746044466,11.77616437,145.87,145.83,5.55616437]
[1750746044679,5.55616437,145.89,145.85,24.20581323]
[1750746044866,1.6326,145.92,145.86,5.55616437]
[1750746045174,5.55616437,145.91,145.86,123.27616437]
[1750746046048,5.55616437,145.92,145.86,117.72]
[1750746046243,5.55616437,145.92,145.87,5.55616437]
[1750746046666,5.55616437,145.92,145.88,28.34]
[1750746046859,5.55616437,145.92,145.88,117.74]
[1750746047570,5.55616437,145.92,145.88,123.29616437]
[1750746047959,5.55616437,145.92,145.88,117.74]
[1750746048159,5.55616437,145.92,145.88,89.4]
[1750746048657,5.55616437,145.9,145.88,89.4]
[1750746048864,5.55616437,145.91,145.88,89.4]
[1750746049067,6.18,145.93,145.88,89.4]
[1750746049269,5.55616437,145.91,145.88,89.4]
[1750746050659,5.55616437,145.92,145.88,89.4]
[1750746052573,5.55616437,145.89,145.88,89.4]
[1750746054668,5.55616437,145.9,145.88,89.4]
[1750746055165,6.18,145.93,145.88,89.4]
[1750746055364,5.55616437,145.9,145.88,89.4]
[1750746056574,5.55616437,145.91,145.88,89.4]
[1750746057378,5.55616437,145.9,145.88,89.4]
[1750746058260,5.55616437,145.91,145.88,89.4]
[1750746058458,5.55616437,145.92,145.88,117.68]
[1750746059998,6.18,145.93,145.88,117.68]
[1750746059999,9.62876386,145.95,145.89,18.64964886]
[1750746060286,5.55616437,145.94,145.9,33.83616437]
[1750746060575,5.55616437,145.93,145.9,28.28]
[1750746060784,5.55616437,145.93,145.89,46.92964886]
[1750746061162,5.55616437,145.91,145.89,117.68]
[1750746061362,5.55616437,145.91,145.89,89.4]
[1750746061571,5.55616437,145.9,145.89,89.4]
[1750746063091,1.6455,145.94,145.89,89.4]
[1750746063276,5.55616437,145.9,145.89,89.4]
[1750746064193,5.55616437,145.9,145.87,89.4]
[1750746064665,5.55616437,145.91,145.87,117.68]
[1750746065067,5.55616437,145.92,145.87,123.23616437]
[1750746066896,6.18,145.93,145.87,117.68]
[1750746067078,5.55616437,145.91,145.87,117.68]
[1750746067393,5.55616437,145.92,145.87,123.23616437]
[1750746067770,1.6455,145.94,145.87,123.23616437]
[1750746067970,5.55616437,145.92,145.87,123.23616437]
[1750746068175,5.55616437,145.91,145.87,117.68]
[1750746069287,5.55616437,145.92,145.87,123.23616437]
[1750746069862,5.55616437,145.91,145.87,117.68]
[1750746070063,1.6455,145.94,145.87,117.68]
[1750746070266,5.55616437,145.91,145.87,117.68]
[1750746070776,1.6455,145.94,145.87,117.68]
[1750746071216,5.55616437,145.91,145.87,117.68]
[1750746072680,1.6455,145.94,145.87,117.68]
[1750746072886,5.55616437,145.91,145.87,117.68]
[1750746073389,1.6455,145.94,145.87,123.23616437]
[1750746073688,5.55616437,145.92,145.87,123.23616437]
[1750746076400,5.55616437,145.91,145.87,123.23616437]
[1750746077306,1.6455,145.94,145.88,5.55616437]
[1750746077489,5.55616437,145.9,145.87,117.68]
[1750746077695,1.6455,145.94,145.87,89.4]
[1750746077887,5.55616437,145.9,145.87,89.4]
[1750746079201,5.55616437,145.89,145.87,89.4]
[1750746080501,5.55616437,145.88,145.87,89.4]
[1750746081387,5.55616437,145.88,145.85,89.4]
[1750746081589,5.55616437,145.86,145.85,89.4]
[1750746083476,5.55616437,145.88,145.85,89.4]
[1750746083700,5.55616437,145.91,145.86,5.55616437]
[1750746084008,1.6282,145.92,145.86,94.95616437]
[1750746084215,5.55616437,145.91,145.86,94.95616437]
[1750746084578,1.6282,145.92,145.86,94.95616437]
[1750746084813,5.55616437,145.92,145.87,52.46581323]
[1750746085022,5.55616437,145.92,145.87,46.90964886]
[1750746085191,5.55616437,145.92,145.87,52.46581323]
[1750746086196,5.55616437,145.92,145.87,33.81616437]
[1750746088016,5.55616437,145.91,145.87,33.81616437]
[1750746088512,5.55616437,145.91,145.87,123.21616437]
[1750746090914,5.55616437,145.91,145.87,117.66]
[1750746091292,6.14,145.93,145.87,117.66]
[1750746091491,6.14,145.93,145.87,123.21616437]
[1750746091816,5.55616437,145.92,145.88,5.55616437]
[1750746092215,5.55616437,145.93,145.89,33.81616437]
[1750746092401,5.55616437,145.94,145.9,5.55616437]
[1750746092598,5.55616437,145.94,145.9,94.95616437]
[1750746093597,5.55616437,145.94,145.9,89.4]
[1750746093790,5.55616437,145.93,145.9,89.4]
[1750746093990,5.55616437,145.94,145.9,89.4]
[1750746094213,5.55616437,145.94,145.9,94.95616437]
[1750746095295,5.55616437,145.94,145.9,89.4]
[1750746095723,5.55616437,145.93,145.9,89.4]
[1750746098296,5.55616437,145.94,145.9,89.4]
[1750746099505,5.55616437,145.92,145.9,89.4]
[1750746100702,5.55616437,145.91,145.9,89.4]
[1750746116131,6.14,145.92,145.9,89.4]
[1750746116431,5.55616437,145.91,145.9,89.4]
[1750746119436,18.64964886,145.9,145.84,89.4]
[1750746119635,5.55616437,145.85,145.78,95.8671]
[1750746119823,5.55616437,145.81,145.78,95.8671]
[1750746120026,5.55616437,145.81,145.78,124.1271]
[1750746120234,5.55616437,145.81,145.78,95.8671]
[1750746120417,6.14,145.85,145.78,129.68326437]
[1750746120618,5.55616437,145.83,145.78,124.1271]
[1750746120829,5.55616437,145.83,145.78,129.68326437]
[1750746121039,5.55616437,145.81,145.78,89.4]
[1750746121263,5.55616437,145.79,145.78,89.4]
[1750746121548,5.55616437,145.79,145.75,89.4]
[1750746121719,5.55616437,145.76,145.75,89.4]
[1750746123836,24.20581323,145.84,145.75,89.4]
[1750746124045,5.55616437,145.77,145.75,89.4]
[1750746124813,24.20581323,145.84,145.75,89.4]
[1750746124814,5.55616437,145.76,145.75,89.4]
[1750746125823,11.11232874,145.76,145.73,89.4]
[1750746126139,11.11232874,145.76,145.69,117.66]
[1750746126140,5.55616437,145.74,145.69,117.66]
[1750746126324,5.55616437,145.72,145.69,89.4]
[1750746126711,5.55616437,145.71,145.69,89.4]
[1750746128141,5.55616437,145.72,145.69,89.4]
[1750746129841,5.55616437,145.71,145.69,89.4]
[1750746130039,5.55616437,145.7,145.68,89.4]
[1750746130430,5.55616437,145.7,145.68,88.4]
[1750746131138,5.55616437,145.71,145.68,88.4]
[1750746131353,5.55616437,145.75,145.73,88.4]
[1750746131757,5.55616437,145.76,145.73,88.4]
[1750746132060,5.55616437,145.75,145.73,88.4]
[1750746136162,6.14,145.78,145.73,88.4]
[1750746136163,5.55616437,145.74,145.73,88.4]
[1750746142377,7.16366437,145.74,145.68,88.4]
[1750746142572,5.55616437,145.69,145.68,88.4]
[1750746144866,1.6075,145.74,145.68,88.4]
[1750746144867,5.55616437,145.7,145.68,88.4]
[1750746145259,5.55616437,145.69,145.68,88.4]
[1750746149795,11.11232874,145.69,145.68,88.4]
[1750746150090,11.11232874,145.69,145.59,6.5429]
[1750746150091,11.11232874,145.69,145.66,88.4]
[1750746150278,5.55616437,145.67,145.61,28.28]
[1750746150470,5.55616437,145.64,145.61,28.28]
[1750746150796,5.55616437,145.65,145.61,116.68]
[1750746150966,5.55616437,145.65,145.61,122.23616437]
[1750746151171,5.55616437,145.67,145.62,24.20581323]
[1750746151480,1.6579,145.71,145.63,28.28]
[1750746151791,5.55616437,145.67,145.63,116.68]
[1750746152575,5.55616437,145.66,145.63,116.68]
[1750746154700,5.55616437,145.64,145.63,88.4]
[1750746158481,5.55616437,145.65,145.63,88.4]
[1750746158680,5.55616437,145.66,145.63,88.4]
[1750746159385,5.55616437,145.65,145.63,88.4]
[1750746159586,5.55616437,145.64,145.63,88.4]
[1750746159891,5.55616437,145.68,145.64,82.84383563]
[1750746160095,5.55616437,145.65,145.64,82.84383563]
[1750746164511,5.55616437,145.65,145.64,82.40924666]
[1750746166218,6.86490927,145.67,145.64,82.40924666]
[1750746166513,5.55616437,145.65,145.64,82.40924666]
[1750746167107,5.55616437,145.65,145.59,110.68924666]
[1750746167323,5.55616437,145.61,145.59,82.40924666]
[1750746171220,5.55616437,145.62,145.59,82.40924666]
[1750746171524,6.14,145.63,145.59,110.70924666]
[1750746171724,5.55616437,145.62,145.59,110.70924666]
[1750746172826,11.69616437,145.63,145.59,110.70924666]
[1750746174399,6.14,145.63,145.59,116.26541103]
[1750746174801,5.55616437,145.64,145.59,116.26541103]
[1750746176324,5.55616437,145.64,145.6,18.64964886]
[1750746176541,5.55616437,145.64,145.6,24.20581323]
[1750746178931,6.14,145.67,145.61,33.85616437]
[1750746179138,5.55616437,145.65,145.61,116.26541103]
[1750746179725,5.55616437,145.65,145.61,110.70924666]
[1750746180314,6.14,145.67,145.61,110.70924666]
[1750746180315,5.55616437,145.64,145.61,110.70924666]
[1750746180519,5.55616437,145.64,145.61,82.40924666]
[1750746183115,5.55616437,145.65,145.61,87.96541103]
[1750746183317,13.9974,145.73,145.65,82.40924666]
[1750746183617,13.9974,145.73,145.65,116.24541103]
[1750746183618,5.55616437,145.7,145.65,116.24541103]
[1750746183821,5.55616437,145.7,145.65,87.96541103]
[1750746186634,13.9974,145.73,145.65,82.40924666]
[1750746186635,5.55616437,145.68,145.65,82.40924666]
[1750746186838,5.55616437,145.67,145.65,82.40924666]
[1750746188347,5.55616437,145.66,145.65,82.40924666]
[1750746188531,5.55616437,145.67,145.65,82.40924666]
[1750746189042,5.55616437,145.66,145.65,82.40924666]
[1750746195253,6.86341798,145.7,145.65,82.40924666]
[1750746195549,5.55616437,145.66,145.65,82.40924666]
[1750746198439,11.69616437,145.68,145.65,82.40924666]
[1750746198844,5.55616437,145.67,145.65,82.40924666]
[1750746199751,6.14,145.68,145.65,82.40924666]
[1750746200146,5.55616437,145.7,145.65,116.24541103]
[1750746201557,6.14,145.73,145.65,116.24541103]
[1750746201558,5.55616437,145.67,145.65,82.40924666]
[1750746202657,5.55616437,145.68,145.65,82.40924666]
[1750746203326,5.55616437,145.67,145.65,82.40924666]
[1750746206663,5.55616437,145.68,145.65,82.40924666]
[1750746207075,6.86310801,145.71,145.65,82.40924666]
[1750746207256,5.55616437,145.68,145.65,82.40924666]
[1750746207444,5.55616437,145.67,145.65,82.40924666]
[1750746208555,12.52707001,145.73,145.66,52.48581323]
[1750746208747,5.55616437,145.78,145.72,5.55616437]
[1750746208947,5.55616437,145.81,145.77,5.55616437]
[1750746209146,5.55616437,145.82,145.77,87.96541103]
[1750746209454,5.55616437,145.81,145.77,87.96541103]
[1750746209666,5.55616437,145.81,145.77,82.40924666]
[1750746212366,6.14,145.83,145.77,82.40924666]
[1750746212568,5.55616437,145.81,145.77,110.66924666]
[1750746214147,5.55616437,145.81,145.77,116.22541103]
[1750746214349,6.14,145.83,145.78,18.64964886]
[1750746214570,6.14,145.83,145.79,5.55616437]
[1750746214779,6.14,145.83,145.8,5.55616437]
[1750746214958,5.55616437,145.85,145.81,5.55616437]
[1750746215276,5.55616437,145.85,145.8,87.96541103]
[1750746215876,6.14,145.9,145.82,5.55616437]
[1750746216174,5.55616437,145.88,145.84,5.55616437]
[1750746217246,6.14,145.9,145.84,87.96541103]
[1750746217560,5.55616437,145.87,145.84,82.40924666]
[1750746218468,5.55616437,145.85,145.83,82.40924666]
[1750746218659,5.55616437,145.84,145.83,82.40924666]
[1750746226286,11.69616437,145.84,145.83,82.40924666]
[1750746227502,11.69616437,145.84,145.76,33.79616437]
[1750746227503,17.25232874,145.84,145.77,82.40924666]
[1750746227790,5.55616437,145.8,145.77,82.40924666]
[1750746228567,5.55616437,145.82,145.77,116.20541103]
[1750746229269,5.55616437,145.82,145.78,5.55616437]
[1750746229967,5.55616437,145.86,145.79,54.24]
[1750746230170,7.6932,145.91,145.79,142.20541103]
[1750746230171,5.55616437,145.84,145.79,142.20541103]
[1750746230687,5.55616437,145.83,145.79,142.20541103]
[1750746231162,33.19654341,145.91,145.79,142.20541103]
[1750746231163,5.55616437,145.84,145.79,142.20541103]
[1750746233283,5.55616437,145.83,145.79,142.20541103]
[1750746233475,5.55616437,145.83,145.79,136.64924666]
[1750746233674,5.55616437,145.83,145.79,108.40924666]
[1750746234873,5.55616437,145.83,145.79,113.96541103]
[1750746235997,5.55616437,145.84,145.79,113.96541103]
[1750746238486,11.69616437,145.85,145.8,5.55616437]
[1750746239305,5.55616437,145.84,145.8,5.55616437]
[1750746242205,5.55616437,145.84,145.8,87.96541103]
[1750746242416,6.14,145.85,145.81,5.55616437]
[1750746242579,6.14,145.85,145.82,5.55616437]
[1750746242784,5.55616437,145.87,145.82,116.20541103]
[1750746242979,6.14,145.9,145.82,116.20541103]
[1750746243208,5.55616437,145.88,145.83,5.55616437]
[1750746245423,5.55616437,145.86,145.82,116.20541103]
[1750746246123,5.55616437,145.87,145.82,116.20541103]
[1750746248940,6.14,145.9,145.82,116.20541103]
[1750746249229,5.55616437,145.87,145.82,116.20541103]
[1750746249732,5.55616437,145.87,145.82,87.96541103]
[1750746250230,5.55616437,145.87,145.82,82.40924666]
[1750746250430,5.55616437,145.87,145.82,87.96541103]
[1750746251714,6.14,145.9,145.82,87.96541103]
[1750746251715,5.55616437,145.88,145.84,5.55616437]
[1750746252035,11.69616437,145.9,145.85,5.55616437]
[1750746252349,11.69616437,145.9,145.85,87.96541103]
[1750746252547,11.69616437,145.9,145.85,82.40924666]
[1750746252851,5.55616437,145.87,145.85,82.40924666]
[1750746253012,5.55616437,145.86,145.85,82.40924666]
[1750746253217,5.55616437,145.87,145.85,82.40924666]
[1750746258235,5.55616437,145.88,145.85,82.40924666]
[1750746258857,5.55616437,145.87,145.85,82.40924666]
[1750746264753,5.55616437,145.86,145.85,82.40924666]
[1750746266450,5.55616437,145.87,145.85,82.40924666]
[1750746271034,5.55616437,145.86,145.85,82.40924666]
[1750746273240,1.6217,145.89,145.85,82.40924666]
[1750746273535,5.55616437,145.87,145.85,82.40924666]
[1750746275374,5.55616437,145.86,145.85,82.40924666]
[1750746276641,12.41205357,145.86,145.81,82.40924666]
[1750746276961,5.55616437,145.82,145.81,82.40924666]
[1750746277665,6.12,145.84,145.81,82.40924666]
[1750746278040,6.38707001,145.88,145.81,116.20541103]
[1750746278345,5.55616437,145.87,145.82,5.55616437]
[1750746278644,5.55616437,145.87,145.83,28.24]
[1750746278851,1.6217,145.89,145.83,116.20541103]
[1750746278852,5.55616437,145.88,145.83,116.20541103]
[1750746279242,5.55616437,145.87,145.83,116.20541103]
[1750746280264,5.55616437,145.87,145.83,82.40924666]
[1750746280963,1.6217,145.89,145.83,82.40924666]
[1750746281149,5.55616437,145.87,145.83,82.40924666]
[1750746281345,5.55616437,145.88,145.83,87.96541103]
[1750746281783,5.55616437,145.88,145.84,5.55616437]
[1750746281977,5.55616437,145.88,145.84,87.96541103]
[1750746282678,5.55616437,145.88,145.84,82.40924666]
[1750746284280,5.55616437,145.87,145.84,82.40924666]
[1750746286656,5.55616437,145.86,145.84,82.40924666]
[1750746286862,5.55616437,145.85,145.84,82.40924666]
[1750746287178,5.55616437,145.86,145.84,82.40924666]
[1750746287982,5.55616437,145.87,145.84,82.40924666]
[1750746288167,5.55616437,145.88,145.84,82.40924666]
[1750746289193,5.55616437,145.89,145.84,87.96541103]
[1750746291293,5.55616437,145.88,145.84,82.40924666]
[1750746292092,5.55616437,145.87,145.84,82.40924666]
[1750746292286,5.55616437,145.88,145.84,82.40924666]
[1750746294885,6.12,145.9,145.84,82.40924666]
[1750746295085,5.55616437,145.88,145.84,82.40924666]
[1750746296075,6.12,145.9,145.84,82.40924666]
[1750746296280,5.55616437,145.88,145.84,82.40924666]
[1750746297583,5.55616437,145.87,145.84,82.40924666]
[1750746297789,5.55616437,145.86,145.84,82.40924666]
[1750746297991,5.55616437,145.85,145.84,82.40924666]
[1750746311706,14.11157001,145.9,145.84,82.40924666]
[1750746312008,5.55616437,145.88,145.84,82.40924666]
[1750746312606,11.67616437,145.9,145.85,33.77616437]
[1750746314734,5.55616437,145.89,145.85,33.77616437]
[1750746315525,5.55616437,145.88,145.84,122.80341103]
[1750746315836,5.55616437,145.88,145.84,117.24724666]
[1750746316234,5.55616437,145.87,145.84,89.02724666]
[1750746317228,5.55616437,145.88,145.84,89.02724666]
[1750746318841,6.12,145.9,145.84,89.02724666]
[1750746319013,5.55616437,145.88,145.84,89.02724666]
[1750746319216,5.55616437,145.87,145.84,82.40924666]
[1750746319411,5.55616437,145.86,145.84,82.40924666]
[1750746327031,6.12,145.88,145.84,82.40924666]
[1750746327244,5.55616437,145.86,145.84,82.40924666]
[1750746327551,6.12,145.88,145.84,82.40924666]
[1750746327752,5.55616437,145.86,145.84,82.40924666]
[1750746328053,6.12,145.88,145.84,82.40924666]
[1750746328054,5.55616437,145.85,145.84,82.40924666]
[1750746334063,12.97507945,145.88,145.84,82.40924666]
[1750746334352,5.55616437,145.85,145.84,82.40924666]
[1750746340256,3.55068727,145.85,145.84,82.40924666]
[1750746341965,10.40704654,145.85,145.79,82.40924666]
[1750746342182,3.55068727,145.81,145.79,82.40924666]
[1750746342361,3.55068727,145.83,145.79,82.40924666]
[1750746342569,3.55068727,145.84,145.79,114.15993393]
[1750746345260,19.36219017,145.88,145.8,3.55068727]
[1750746345465,3.55068727,145.84,145.8,85.95993393]
[1750746345669,3.55068727,145.85,145.8,85.95993393]
[1750746345850,3.55068727,145.85,145.81,28.2]
[1750746346052,3.55068727,145.85,145.8,114.15993393]
[1750746346565,3.55068727,145.86,145.81,22.20033613]
[1750746346756,3.55068727,145.86,145.81,104.60958279]
[1750746347261,3.55068727,145.85,145.81,101.05889552]
[1750746349961,6.12,145.88,145.81,101.05889552]
[1750746350174,3.55068727,145.85,145.81,101.05889552]
[1750746351266,6.12,145.88,145.81,104.60958279]
[1750746351472,9.67068727,145.88,145.83,3.55068727]
[1750746351778,9.67068727,145.88,145.83,31.75068727]
[1750746352859,3.55068727,145.88,145.83,31.75068727]
[1750746354476,3.55068727,145.88,145.83,114.15993393]
[1750746355449,19.3406735,145.91,145.83,114.15993393]
[1750746355650,3.55068727,145.88,145.83,114.15993393]
[1750746355883,3.55068727,145.87,145.83,82.40924666]
[1750746356460,3.55068727,145.87,145.83,85.95993393]
[1750746357372,3.55068727,145.88,145.83,85.95993393]
[1750746360397,3.55068727,145.87,145.83,85.95993393]
[1750746361078,3.55068727,145.88,145.83,85.95993393]
[1750746361477,30.57263911,145.93,145.87,3.55068727]
[1750746361478,6.38707001,145.91,145.87,3.55068727]
[1750746361689,3.55068727,145.92,145.87,110.58924666]
[1750746361895,3.55068727,145.91,145.87,114.13993393]
[1750746362187,3.55068727,145.93,145.87,116.94704666]
[1750746362492,3.55068727,145.93,145.88,3.55068727]
[1750746362672,13.74445157,145.94,145.9,3.55068727]
[1750746362874,13.74445157,145.94,145.91,46.82964886]
[1750746363091,9.65068727,145.97,145.92,3.55068727]
[1750746363290,6.1,145.97,145.92,3.55068727]
[1750746363682,9.65068727,145.97,145.92,3.55068727]
[1750746364398,11.63768975,145.97,145.92,5.53768975]
[1750746364988,6.1,145.97,145.94,5.53768975]
[1750746365188,6.1,145.97,145.94,82.40924666]
[1750746365385,11.63768975,145.97,145.94,82.40924666]
[1750746368203,6.1,145.97,145.94,82.40924666]
[1750746368988,11.63768975,145.97,145.94,82.40924666]
[1750746369307,6.1,145.97,145.94,82.40924666]
[1750746369505,11.63768975,145.97,145.94,82.40924666]
[1750746369911,5.53768975,145.95,145.94,82.40924666]
[1750746372694,12.38935127,145.95,145.94,82.40924666]
[1750746372891,12.38935127,145.95,145.88,28.18]
[1750746372892,12.38935127,145.95,145.88,82.40924666]
[1750746373100,5.53768975,145.9,145.88,82.40924666]
[1750746373886,5.53768975,145.91,145.88,82.40924666]
[1750746374407,5.53768975,145.92,145.88,110.56924666]
[1750746375913,5.53768975,145.91,145.88,110.56924666]
[1750746376284,5.53768975,145.91,145.88,82.40924666]
[1750746377613,5.53768975,145.9,145.88,82.40924666]
[1750746378891,5.53768975,145.89,145.88,82.40924666]
[1750746379094,6.85239882,145.94,145.88,82.40924666]
[1750746379095,5.53768975,145.9,145.88,82.40924666]
[1750746383129,5.53768975,145.92,145.88,110.56924666]
[1750746384507,5.53768975,145.91,145.88,110.56924666]
[1750746384916,5.53768975,145.91,145.88,82.40924666]
[1750746386514,5.53768975,145.9,145.88,82.40924666]
[1750746387826,5.53768975,145.91,145.88,82.40924666]
[1750746388038,6.85182449,145.95,145.88,82.40924666]
[1750746388343,5.53768975,145.91,145.88,82.40924666]
[1750746389345,5.53768975,145.9,145.88,82.40924666]
[1750746391140,5.53768975,145.89,145.88,82.40924666]
[1750746392542,6.1,145.91,145.89,82.40924666]
[1750746392543,5.53768975,145.9,145.89,82.40924666]
[1750746396662,14.52893461,145.91,145.89,82.40924666]
[1750746396663,7.6753,145.91,145.89,82.40924666]
[1750746396957,5.53768975,145.9,145.89,82.40924666]
[1750746402557,5.53768975,145.9,145.84,82.40924666]
[1750746402737,5.53768975,145.87,145.84,82.40924666]
[1750746404255,5.53768975,145.88,145.84,110.56924666]
[1750746407344,5.53768975,145.88,145.84,116.10693641]
[1750746407954,7.6753,145.91,145.85,5.53768975]
[1750746408281,5.53768975,145.9,145.85,87.94693641]
[1750746408782,5.53768975,145.9,145.86,28.16]
[1750746409488,5.53768975,145.9,145.85,116.10693641]
[1750746411370,5.53768975,145.89,145.85,110.56924666]
[1750746415172,5.53768975,145.88,145.85,110.56924666]
[1750746415353,5.53768975,145.88,145.85,82.40924666]
[1750746417192,5.53768975,145.9,145.85,87.94693641]
[1750746417369,5.53768975,145.9,145.86,28.16]
[1750746417786,5.53768975,145.9,145.85,116.10693641]
[1750746418789,5.53768975,145.9,145.86,18.64964886]
[1750746419164,11.63768975,145.91,145.86,24.18733861]
[1750746419365,11.63768975,145.91,145.86,106.59658527]
[1750746419765,11.63768975,145.91,145.87,28.16]
[1750746420265,6.1,145.91,145.87,28.16]
[1750746420465,6.1,145.91,145.87,33.69768975]
[1750746420685,5.53768975,145.93,145.88,24.18733861]
[1750746420996,5.53768975,145.92,145.88,101.05889552]
[1750746421762,5.53768975,145.93,145.89,28.16]
[1750746421981,5.53768975,145.93,145.89,33.69768975]
[1750746422174,5.53768975,145.93,145.89,28.16]
[1750746425596,5.53768975,145.93,145.89,110.56924666]
[1750746427679,7.18728975,145.94,145.89,116.10693641]
[1750746428977,5.53768975,145.93,145.89,110.56924666]
[1750746431064,5.53768975,145.92,145.89,110.56924666]
[1750746431268,5.53768975,145.9,145.89,82.40924666]
[1750746433175,14.87648034,145.94,145.89,82.40924666]
[1750746433374,5.53768975,145.9,145.89,82.40924666]
[1750746447524,8.02426688,145.94,145.89,82.40924666]
[1750746447704,5.53768975,145.92,145.89,110.54924666]
[1750746447910,5.53768975,145.93,145.89,110.54924666]
[1750746448302,6.37466688,145.98,145.92,5.53768975]
[1750746448619,5.53768975,145.99,145.94,24.18733861]
[1750746448922,21.00561763,146.02,145.93,28.14]
[1750746448923,5.53768975,145.95,145.93,28.14]
[1750746449104,5.53768975,145.95,145.91,46.78964886]
[1750746449307,5.53768975,145.96,145.91,52.32733861]
[1750746449618,5.53768975,145.96,145.91,28.14]
[1750746449820,5.53768975,145.95,145.91,28.14]
[1750746450200,5.53768975,145.95,145.9,149.07768975]
[1750746450400,5.53768975,145.94,145.9,143.54]
[1750746450601,5.53768975,145.94,145.89,33.67768975]
[1750746451230,5.53768975,145.94,145.9,5.53768975]
[1750746451921,5.53768975,145.94,145.89,28.14]
[1750746452225,5.53768975,145.94,145.89,33.67768975]
[1750746452931,5.53768975,145.94,145.9,5.53768975]
[1750746455024,5.53768975,145.94,145.9,94.93768975]
[1750746455326,5.53768975,145.95,145.9,94.93768975]
[1750746455505,5.53768975,145.95,145.9,89.4]
[1750746455709,5.53768975,145.95,145.9,94.93768975]
[1750746455907,5.53768975,145.95,145.91,5.53768975]
[1750746456233,7.13548975,145.96,145.91,5.53768975]
[1750746456805,11.61768975,145.97,145.92,5.53768975]
[1750746457028,6.08,145.97,145.93,5.53768975]
[1750746458116,6.08,145.97,145.94,5.53768975]
[1750746458320,6.08,145.97,145.94,89.4]
[1750746459930,6.08,145.97,145.94,94.93768975]
[1750746468136,6.08,145.97,145.95,5.53768975]
[1750746468333,7.07528975,145.99,145.95,5.53768975]
[1750746469939,7.07528975,145.99,145.95,94.93768975]
[1750746470149,7.07528975,145.99,145.95,89.4]
[1750746471845,5.53768975,145.98,145.95,89.4]
[1750746472023,1.5376,145.99,145.95,89.4]